bitfinex/quotes_SOLUSD_20251007
["timestamp","ask_amount","ask_price","bid_price","bid_amount"]
[1759839030231,5.02304415,230.26,230.13,20.8]
[1759839030232,15.2003359,230.26,230.12,13.03752634]
[1759839030441,20.8,230.23,230.13,0.72]
[1759839030646,0.68,230.22,230.14,30.44]
[1759839030814,0.68,230.22,230.15,0.72]
[1759839031017,4.34385995,230.21,230.15,0.72]
[1759839032118,0.72,230.2,230.15,0.72]
[1759839032441,0.72,230.19,230.15,0.72]
[1759839033226,4.3444261,230.18,230.15,0.72]
[1759839033827,0.72,230.19,230.15,0.72]
[1759839035120,36.72284944,230.22,230.17,2.71539345]
[1759839035320,0.72,230.21,230.18,30.44]
[1759839036033,36.00284944,230.22,230.18,30.44]
[1759839036230,0.72,230.2,230.18,30.44]
[1759839036942,0.72,230.19,230.18,30.44]
[1759839037145,4.3444261,230.18,230.15,2.71539345]
[1759839037441,4.3444261,230.18,230.16,30.42]
[1759839037643,0.72,230.17,230.15,2.71539345]
[1759839037842,4.3444261,230.18,230.16,30.42]
[1759839043864,4.3444261,230.18,230.16,33.82539345]
[1759839045355,10.86057921,230.2,230.17,3.40539345]
[1759839045738,10.86057921,230.2,230.17,2.71539345]
[1759839046073,11.56057921,230.2,230.17,2.71539345]
[1759839046555,10.86057921,230.2,230.17,3.40539345]
[1759839046867,10.86057921,230.2,230.17,2.71539345]
[1759839047238,11.56057921,230.2,230.17,2.71539345]
[1759839047860,15.90462786,230.2,230.17,2.71539345]
[1759839048544,15.90462786,230.2,230.15,3.40539345]
[1759839048760,0.7,230.19,230.16,33.11539345]
[1759839048952,0.7,230.18,230.17,30.38]
[1759839050040,15.90549135,230.18,230.17,30.38]
[1759839050654,15.20549135,230.18,230.17,30.38]
[1759839051452,20.8,230.19,230.17,30.38]
[1759839051680,0.7,230.19,230.17,30.38]
[1759839052054,36.00350983,230.21,230.17,30.38]
[1759839052268,0.7,230.2,230.17,30.38]
[1759839052452,4.3444261,230.18,230.15,2.71539345]
[1759839052653,4.3444261,230.18,230.16,30.36]
[1759839053871,15.20417028,230.2,230.16,30.36]
[1759839054056,15.90417028,230.2,230.16,31.05]
[1759839054771,15.90417028,230.2,230.17,30.36]
[1759839056262,20.8,230.17,230.11,40.11043965]
[1759839056443,2.71539345,230.13,230.06,0.79]
[1759839056647,2.71539345,230.07,230.06,0.1]
[1759839056862,2.71539345,230.07,230.06,30.58]
[1759839057040,3.41539345,230.07,230.06,30.58]
[1759839057867,7.76189668,230.07,230.06,30.58]
[1759839058068,5.04650323,230.07,230.06,30.58]
[1759839058653,7.76189668,230.07,230.06,30.58]
[1759839059376,7.76189668,230.07,230.06,0.1]
[1759839059561,7.76189668,230.07,230.06,30.58]
[1759839059961,7.76189668,230.07,230.06,0.1]
[1759839060157,7.76189668,230.07,230.06,30.58]
[1759839061044,5.04650323,230.07,230.06,30.58]
[1759839061470,7.76189668,230.07,230.06,30.58]
[1759839062454,4.34650323,230.07,230.06,30.58]
[1759839062688,25.84650323,230.07,230.06,30.58]
[1759839065755,25.14650323,230.07,230.06,30.58]
[1759839066783,25.14650323,230.07,230.06,0.1]
[1759839066784,7.76189668,230.07,230.06,0.1]
[1759839066973,7.76189668,230.07,230.06,30.56]
[1759839069555,7.76189668,230.07,230.06,0.1]
[1759839069752,7.76189668,230.07,230.06,30.54]
[1759839071485,5.04650323,230.07,230.06,30.54]
[1759839072776,4.34650323,230.07,230.06,30.54]
[1759839073872,6.78693398,230.07,230.06,30.54]
[1759839075271,20.8,230.06,230.04,0.1]
[1759839075467,20.8,230.05,230.04,0.1]
[1759839075673,25.14688111,230.05,230.04,0.1]
[1759839075967,30.04774261,230.05,230.04,1e-08]
[1759839076159,27.60731186,230.05,230.04,1e-08]
[1759839076359,25.14688111,230.05,230.04,1e-08]
[1759839076559,26.88731186,230.05,230.04,5.00000001]
[1759839077582,25.14688111,230.05,230.04,5.00000001]
[1759839078282,25.14688111,230.05,230.04,5.72000001]
[1759839078471,25.14688111,230.05,230.04,5.00000001]
[1759839079387,26.88731186,230.05,230.04,1e-08]
[1759839079593,27.58731186,230.05,230.04,1e-08]
[1759839080257,26.88777786,230.05,230.04,1e-08]
[1759839081265,27.58777786,230.05,230.04,1e-08]
[1759839081573,26.88777786,230.05,230.04,1e-08]
[1759839083790,26.88777786,230.05,230.04,0.72000001]
[1759839083791,4.34688111,230.05,230.04,0.72000001]
[1759839089423,4.34669216,230.06,230.04,0.72000001]
[1759839089715,20.8,230.05,230.04,0.72000001]
[1759839090616,25.14688111,230.05,230.04,0.72000001]
[1759839093003,4.34688111,230.05,230.04,0.72000001]
[1759839094320,15.21276132,230.07,230.04,0.72000001]
[1759839096095,4.34612542,230.09,230.04,0.72000001]
[1759839096301,20.8,230.11,230.04,0.72000001]
[1759839096500,4.34537,230.13,230.04,0.72000001]
[1759839096501,23.70224562,230.1,230.04,0.72000001]
[1759839096730,20.8,230.1,230.04,0.72000001]
[1759839098519,4.34612542,230.09,230.04,0.72000001]
[1759839099228,4.34612542,230.09,230.05,30.42]
[1759839099412,4.34612542,230.09,230.06,0.68]
[1759839099729,4.34612542,230.09,230.07,0.68]
[1759839099908,4.34612542,230.09,230.07,31.08]
[1759839100109,15.21086028,230.1,230.07,31.08]
[1759839100417,2.91063477,230.09,230.07,31.08]
[1759839100819,2.91063477,230.09,230.07,0.68]
[1759839101127,2.91063477,230.09,230.08,30.4]
[1759839101430,2.91063477,230.09,230.08,31.08]
[1759839102326,4.34593654,230.1,230.08,31.08]
[1759839102715,7.25657131,230.1,230.08,0.68]
[1759839103026,4.34593654,230.1,230.09,30.4]
[1759839104422,15.21011689,230.11,230.04,1e-08]
[1759839104611,2.91063477,230.1,230.06,0.68]
[1759839104807,2.91063477,230.09,230.07,30.4]
[1759839105007,2.91063477,230.1,230.07,30.4]
[1759839105323,2.91063477,230.09,230.07,30.4]
[1759839105528,2.91063477,230.1,230.07,30.4]
[1759839105714,2.91063477,230.09,230.07,30.4]
[1759839106015,4.34631432,230.08,230.07,30.4]
[1759839106814,4.34631432,230.08,230.07,31.08]
[1759839107026,4.34631432,230.08,230.07,0.68]
[1759839107233,4.34631432,230.08,230.07,31.06]
[1759839107831,2.91063477,230.1,230.07,31.06]
[1759839108038,2.91063477,230.1,230.08,0.68]
[1759839108338,36.00903569,230.17,230.08,0.68]
[1759839108511,3.61338195,230.23,230.09,10.87647521]
[1759839108714,3.56773553,230.22,230.1,0.68]
[1759839108913,2.90773553,230.21,230.1,0.68]
[1759839109113,23.70773553,230.2,230.1,0.68]
[1759839109310,2.90773553,230.19,230.1,0.68]
[1759839109514,0.66,230.21,230.1,0.68]
[1759839109714,15.20417028,230.2,230.1,0.68]
[1759839110836,15.20417028,230.2,230.11,10.87647521]
[1759839111037,4.34404865,230.2,230.13,10.87647521]
[1759839111241,4.34386593,230.21,230.14,31.08]
[1759839111411,4.34386593,230.21,230.15,0.68]
[1759839111611,4.34358337,230.23,230.15,0.68]
[1759839112218,25.14358337,230.23,230.15,0.68]
[1759839112514,4.34358337,230.23,230.15,0.68]
[1759839112708,28.04423616,230.25,230.15,0.68]
[1759839112924,25.14310532,230.25,230.15,0.68]
[1759839113336,0.66,230.24,230.15,0.68]
[1759839114523,4.34310532,230.25,230.16,10.87647521]
[1759839114835,7.24141724,230.27,230.18,10.87647521]
[1759839115031,18.09823749,230.27,230.19,0.68]
[1759839115237,15.19954835,230.27,230.2,30.4]
[1759839115421,15.85954835,230.27,230.2,31.08]
[1759839115811,15.85954835,230.27,230.21,0.68]
[1759839116247,4.3427281,230.27,230.21,0.68]
[1759839116445,4.34252668,230.29,230.22,10.87647521]
[1759839116738,0.2,230.31,230.24,10.87647521]
[1759839116739,4.34216239,230.3,230.24,10.87647521]
[1759839116935,4.54198367,230.31,230.25,0.68]
[1759839117126,4.54198367,230.31,230.26,30.4]
[1759839117441,5.20198367,230.31,230.27,0.68]
[1759839117643,4.54198367,230.31,230.26,30.4]
[1759839117818,4.54198367,230.31,230.28,0.68]
[1759839118153,4.54198367,230.31,230.26,31.08]
[1759839118332,4.54198367,230.31,230.26,30.4]
[1759839118523,4.54198367,230.31,230.27,0.68]
[1759839119034,16.05691832,230.31,230.26,30.4]
[1759839119222,16.05691832,230.31,230.26,31.08]
[1759839119548,4.54198367,230.31,230.27,0.68]
[1759839120244,5.20198367,230.31,230.27,0.68]
[1759839120434,0.2,230.31,230.28,0.68]
[1759839121037,0.2,230.31,230.29,10.87647521]
[1759839121237,0.2,230.31,230.3,0.68]
[1759839122143,0.2,230.31,230.3,11.55647521]
[1759839122345,0.2,230.31,230.3,41.95647521]
[1759839122547,0.2,230.31,230.3,41.97647521]
[1759839123547,0.2,230.31,230.3,62.77647521]
[1759839125272,0.2,230.31,230.3,41.97647521]
[1759839125477,0.2,230.33,230.32,31.67647521]
[1759839125967,0.2,230.33,230.32,32.37647521]
[1759839127482,0.2,230.33,230.32,62.77647521]
[1759839127684,0.2,230.33,230.32,67.11826055]
[1759839128047,0.2,230.33,230.32,62.77647521]
[1759839128273,0.2,230.33,230.32,67.11826055]
[1759839128572,0.2,230.33,230.32,62.77647521]
[1759839128876,0.2,230.33,230.32,67.11826055]
[1759839129243,0.2,230.33,230.32,15.91826055]
[1759839129469,0.2,230.33,230.32,46.31826055]
[1759839129654,0.2,230.33,230.32,15.91826055]
[1759839129863,0.2,230.33,230.32,46.33826055]
[1759839130060,0.13286218,230.33,230.32,46.33826055]
[1759839130752,0.2,230.35,230.34,10.87647521]
[1759839130952,0.2,230.35,230.34,11.31061604]
[1759839131175,0.2,230.35,230.34,16.35202439]
[1759839131850,0.2,230.35,230.34,36.71788356]
[1759839132057,0.2,230.35,230.34,46.33788356]
[1759839132660,0.2,230.35,230.34,15.91788356]
[1759839132860,0.2,230.35,230.34,46.33788356]
[1759839133572,0.2,230.35,230.34,11.57647521]
[1759839133786,0.2,230.35,230.34,46.33788356]
[1759839134666,0.2,230.36,230.35,10.87647521]
[1759839134871,0.2,230.36,230.35,11.57647521]
[1759839135370,0.2,230.36,230.35,48.09384387]
[1759839135956,0.2,230.36,230.35,17.65384387]
[1759839136164,0.2,230.36,230.35,13.31262399]
[1759839136363,0.2,230.36,230.35,43.75262399]
[1759839136565,0.2,230.36,230.35,48.09384387]
[1759839136763,0.2,230.36,230.35,13.31262399]
[1759839136955,0.2,230.36,230.35,43.75262399]
[1759839137358,0.2,230.36,230.35,48.09384387]
[1759839137553,0.2,230.36,230.35,6.77736866]
[1759839137756,0.2,230.36,230.35,48.09384387]
[1759839138068,0.2,230.36,230.35,43.75262399]
[1759839138686,0.2,230.36,230.35,48.09384387]
[1759839139468,0.2,230.36,230.35,43.75262399]
[1759839139872,0.2,230.36,230.35,48.09384387]
[1759839141071,0.2,230.36,230.35,37.21736866]
[1759839141378,0.2,230.36,230.35,48.09384387]
[1759839141589,0.2,230.37,230.36,10.87647521]
[1759839141770,0.2,230.37,230.36,11.57647521]
[1759839142176,0.2,230.41,230.4,10.87647521]
[1759839142378,0.2,230.41,230.4,75.13647521]
[1759839142592,0.2,230.41,230.4,75.85647521]
[1759839142786,0.2,230.41,230.4,77.59254864]
[1759839143382,0.87,230.41,230.4,46.43254864]
[1759839143584,0.87,230.41,230.4,65.49647521]
[1759839143785,0.87,230.41,230.4,95.95647521]
[1759839145096,0.87,230.41,230.4,65.49647521]
[1759839145285,0.87,230.41,230.4,95.95647521]
[1759839145485,0.2,230.41,230.4,95.95647521]
[1759839145775,0.87,230.41,230.4,95.95647521]
[1759839146904,0.87,230.41,230.4,65.49647521]
[1759839147101,0.87,230.41,230.4,33.82]
[1759839147307,0.87,230.41,230.4,64.28]
[1759839147308,5.2100894,230.41,230.4,64.28]
[1759839147711,5.2100894,230.41,230.4,33.82]
[1759839147895,5.2100894,230.41,230.4,64.28]
[1759839149603,5.2100894,230.41,230.4,33.82]
[1759839149912,5.2100894,230.41,230.4,64.28]
[1759839150810,20.8,230.38,230.24,33.82]
[1759839151015,0.67,230.37,230.28,5.2100894]
[1759839151314,20.8,230.38,230.24,33.82]
[1759839151315,0.67,230.36,230.24,33.82]
[1759839151517,23.50819241,230.38,230.24,33.82]
[1759839151518,0.67,230.35,230.25,30.48]
[1759839151689,15.86492923,230.34,230.26,10.87647521]
[1759839151891,0.67,230.33,230.27,30.48]
[1759839152089,0.67,230.32,230.27,30.48]
[1759839152401,0.67,230.31,230.27,30.48]
[1759839152593,0.67,230.3,230.27,30.48]
[1759839153910,0.67,230.29,230.27,30.48]
[1759839154093,0.67,230.28,230.24,33.82]
[1759839154299,0.67,230.27,230.24,33.82]
[1759839154524,0.67,230.26,230.25,30.48]
[1759839155429,5.0129167,230.26,230.25,30.48]
[1759839155731,0.67,230.26,230.25,30.48]
[1759839155940,5.0129167,230.26,230.25,30.48]
[1759839156295,5.0129167,230.26,230.24,33.82]
[1759839156544,4.3429167,230.26,230.25,30.48]
[1759839156896,5.0129167,230.26,230.25,30.48]
[1759839157204,5.0129167,230.26,230.24,33.82]
[1759839157409,21.47,230.25,230.24,33.82]
[1759839157622,21.47,230.25,230.24,64.3]
[1759839159229,5.01310532,230.25,230.24,64.3]
[1759839160436,0.67,230.25,230.24,64.3]
[1759839160619,15.19954835,230.27,230.24,64.3]
[1759839160930,0.69,230.25,230.24,64.3]
[1759839161435,5.03310532,230.25,230.24,64.3]
[1759839162750,25.83310532,230.25,230.24,64.3]
[1759839163124,36.69086862,230.25,230.14,11.58647521]
[1759839163325,0.69,230.24,230.15,30.48]
[1759839163630,0.69,230.23,230.15,30.48]
[1759839163820,0.69,230.22,230.15,30.48]
[1759839164849,0.69,230.21,230.15,30.48]
[1759839165350,36.00086862,230.25,230.16,30.48]
[1759839165351,0.69,230.2,230.16,30.48]
[1759839165737,4.3444261,230.18,230.16,30.48]
[1759839167736,4.34423736,230.19,230.16,30.48]
[1759839167948,0.69,230.18,230.16,30.48]
[1759839168245,15.20483078,230.19,230.16,30.48]
[1759839168452,4.34423736,230.19,230.16,30.48]
[1759839168653,5.03423736,230.19,230.16,30.48]
[1759839171328,4.34385995,230.21,230.16,30.48]
[1759839171529,4.34329395,230.24,230.17,0.71]
[1759839171728,0.69,230.23,230.17,0.71]
[1759839172738,4.34367127,230.22,230.17,0.71]
[1759839172964,5.03367127,230.22,230.17,0.71]
[1759839173131,15.89284944,230.22,230.17,0.71]
[1759839173643,0.69,230.21,230.17,0.71]
[1759839173837,0.69,230.21,230.18,30.5]
[1759839174040,4.34404865,230.2,230.19,30.5]
[1759839174262,4.34404865,230.2,230.15,0.71]
[1759839174551,0.69,230.19,230.16,30.5]
[1759839174946,4.34404865,230.2,230.16,30.5]
[1759839175454,4.34404865,230.2,230.16,31.21]
[1759839176241,4.34385995,230.21,230.16,31.21]
[1759839176443,4.34385995,230.21,230.16,0.71]
[1759839176754,4.34385995,230.21,230.17,30.5]
[1759839176932,5.03385995,230.21,230.17,30.5]
[1759839177135,5.03385995,230.21,230.16,0.71]
[1759839177355,5.03385995,230.21,230.17,30.48]
[1759839177865,15.20284944,230.22,230.17,31.19]
[1759839178163,15.89284944,230.22,230.17,31.19]
[1759839178865,15.89284944,230.22,230.17,30.48]
[1759839179048,15.89284944,230.22,230.17,31.19]
[1759839179243,15.20284944,230.22,230.18,0.71]
[1759839179451,4.34367127,230.22,230.18,0.71]
[1759839179742,4.34367127,230.22,230.19,0.71]
[1759839180358,4.34367127,230.22,230.2,0.71]
[1759839180541,4.34367127,230.22,230.21,30.48]
[1759839180740,23.91513483,230.33,230.21,31.19]
[1759839180741,10.85706143,230.27,230.21,31.19]
[1759839181063,4.34308656,230.26,230.22,0.71]
[1759839181275,0.69,230.26,230.21,30.48]
[1759839181468,15.19978953,230.27,230.01,48.07978212]
[1759839181469,0.66,230.25,230.22,30.48]
[1759839181766,0.66,230.24,230.15,0.66]
[1759839181956,0.66,230.24,230.16,30.48]
[1759839182150,0.66,230.24,230.16,0.66]
[1759839182544,21.46,230.24,230.16,0.66]
[1759839182765,21.46,230.24,230.17,30.5]
[1759839182968,0.66,230.23,230.17,30.5]
[1759839183359,2.70819241,230.21,230.12,0.66]
[1759839183554,2.70819241,230.21,230.13,30.5]
[1759839183555,0.66,230.2,230.13,30.5]
[1759839183750,21.46,230.19,230.07,33.84]
[1759839183953,21.46,230.19,230.08,0.66]
[1759839183954,24.16819241,230.18,230.08,0.66]
[1759839184162,24.16819241,230.18,230.09,30.5]
[1759839184375,0.66,230.17,230.09,30.5]
[1759839184545,0.66,230.17,230.1,0.66]
[1759839185560,4.34480361,230.16,230.1,0.66]
[1759839186268,15.20681264,230.16,230.1,0.66]
[1759839186871,15.20681264,230.16,230.11,30.5]
[1759839187170,15.86681264,230.16,230.12,30.5]
[1759839187369,0.66,230.15,230.12,30.5]
[1759839187561,0.66,230.15,230.09,0.66]
[1759839187562,10.86200903,230.16,230.09,0.66]
[1759839187762,0.66,230.14,230.13,30.5]
[1759839188278,0.66,230.14,230.07,33.84]
[1759839188451,0.66,230.14,230.08,30.5]
[1759839189350,4.34537,230.13,230.08,30.5]
[1759839189566,4.34537,230.13,230.08,31.16]
[1759839189967,0.66,230.12,230.08,30.5]
[1759839190165,0.66,230.12,230.07,33.84]
[1759839190459,0.66,230.12,230.08,30.5]
[1759839190660,0.66,230.12,230.07,34.5]
[1759839191068,0.66,230.11,230.08,30.5]
[1759839191270,4.34593654,230.1,230.08,30.5]
[1759839191466,10.86342502,230.13,230.08,30.5]
[1759839191771,11.52389709,230.12,230.08,30.5]
[1759839192270,10.86389709,230.12,230.08,31.16]
[1759839193963,10.86389709,230.12,230.09,30.5]
[1759839194287,4.34537,230.13,230.1,0.66]
[1759839194463,4.34537,230.13,230.09,30.5]
[1759839194661,4.34537,230.13,230.1,0.66]
[1759839195258,15.20879502,230.13,230.09,30.5]
[1759839195464,10.86342502,230.13,230.09,31.16]
[1759839196072,4.34518119,230.14,230.1,0.66]
[1759839196311,15.86813417,230.14,230.09,30.5]
[1759839196587,15.86813417,230.14,230.09,31.16]
[1759839197084,15.86813417,230.14,230.1,0.66]
[1759839197383,15.20813417,230.14,230.1,0.66]
[1759839198080,4.34518119,230.14,230.11,0.66]
[1759839198469,4.34518119,230.14,230.09,30.5]
[1759839198671,10.8601679,230.2,230.12,0.66]
[1759839198903,2.90228468,230.19,230.13,30.48]
[1759839199200,10.8601679,230.2,230.14,0.66]
[1759839199397,4.34423736,230.19,230.14,0.66]
[1759839200175,7.24770121,230.2,230.14,0.66]
[1759839200499,15.20417028,230.2,230.14,0.66]
[1759839202167,10.86012163,230.2,230.14,0.66]
[1759839202682,3.56684874,230.19,230.07,0.66]
[1759839202889,22.53905278,230.16,230.07,0.66]
[1759839203185,3.56684874,230.15,230.08,30.5]
[1759839203389,0.66,230.14,230.08,30.5]
[1759839204097,4.34537,230.13,230.08,30.5]
[1759839204280,4.34537,230.13,230.09,30.5]
[1759839204483,15.20879502,230.13,230.09,31.16]
[1759839204794,15.20879502,230.13,230.1,0.66]
[1759839205374,15.20879502,230.13,230.09,30.5]
[1759839205577,15.86879502,230.13,230.09,30.5]
[1759839205898,15.86879502,230.13,230.1,30.5]
[1759839206087,15.86879502,230.13,230.11,30.5]
[1759839206292,0.66,230.12,230.11,30.5]
[1759839208078,15.21011689,230.11,230.06,0.1]
[1759839208274,15.21011689,230.11,230.07,31.16]
[1759839208508,15.21011689,230.11,230.08,0.66]
[1759839208673,15.21011689,230.11,230.09,0.66]
[1759839209094,21.46,230.19,230.1,0.66]
[1759839209302,2.90848741,230.18,230.1,0.66]
[1759839209504,3.56848741,230.18,230.07,30.5]
[1759839209700,0.66,230.17,230.09,0.66]
[1759839210108,15.20681264,230.16,230.09,0.66]
[1759839211397,3.59890639,230.15,230.06,10.97647521]
[1759839211717,0.69,230.14,230.07,30.5]
[1759839211895,2.90890639,230.15,230.08,0.71]
[1759839212281,15.20813417,230.14,230.08,0.71]
[1759839212807,15.89813417,230.14,230.08,0.71]
[1759839213918,15.89813417,230.14,230.06,0.1]
[1759839214222,15.89813417,230.14,230.09,30.54]
[1759839214508,0.69,230.13,230.09,30.54]
[1759839214885,0.69,230.12,230.09,30.54]
[1759839215298,11.55295298,230.14,230.09,30.54]
[1759839215478,0.69,230.13,230.09,30.54]
[1759839215889,4.34555883,230.12,230.09,30.54]
[1759839216105,15.89945592,230.12,230.09,30.54]
[1759839218009,0.66,230.11,230.09,30.54]
[1759839218513,15.20945592,230.12,230.09,30.54]
[1759839218688,15.86945592,230.12,230.09,30.54]
[1759839219200,15.20945592,230.12,230.09,30.54]
[1759839219397,15.86945592,230.12,230.09,30.54]
[1759839219901,10.86389709,230.12,230.09,30.54]
[1759839220411,10.86389709,230.12,230.09,31.25]
[1759839221412,10.86389709,230.12,230.09,0.71]
[1759839221708,10.86389709,230.12,230.1,30.5]
[1759839222291,10.86389709,230.12,230.1,31.21]
[1759839222699,4.34537,230.13,230.11,0.71]
[1759839222898,4.34537,230.13,230.12,0.71]
[1759839224310,4.34518119,230.14,230.12,0.71]
[1759839224626,15.20813417,230.14,230.1,30.5]
[1759839224822,15.20813417,230.14,230.1,31.21]
[1759839225192,15.20813417,230.14,230.1,30.5]
[1759839225412,15.20813417,230.14,230.11,0.71]
[1759839225815,15.20813417,230.14,230.1,30.5]
[1759839226016,15.20813417,230.14,230.11,0.71]
[1759839227003,15.20813417,230.14,230.12,0.71]
[1759839227730,4.34518119,230.14,230.13,0.71]
[1759839229040,4.34518119,230.14,230.13,30.48]
[1759839229905,15.86813417,230.14,230.07,0.71]
[1759839230131,15.86813417,230.14,230.08,30.46]
[1759839230333,15.20813417,230.14,230.09,0.71]
[1759839230507,15.20813417,230.14,230.1,0.71]
[1759839230823,15.20813417,230.14,230.08,0.71]
[1759839231023,15.20813417,230.14,230.09,30.5]
[1759839231024,0.66,230.13,230.09,30.5]
[1759839231223,15.20813417,230.14,230.09,30.5]
[1759839231224,0.66,230.12,230.09,30.5]
[1759839231629,15.86813417,230.14,230.1,30.5]
[1759839231833,0.66,230.13,230.1,30.5]
[1759839232204,15.20813417,230.14,230.1,30.5]
[1759839232410,15.20813417,230.14,230.1,31.21]
[1759839232630,15.20813417,230.14,230.06,0.1]
[1759839232834,15.20945592,230.12,230.07,30.5]
[1759839233021,15.86945592,230.12,230.07,31.21]
[1759839233423,15.20945592,230.12,230.08,0.71]
[1759839233739,15.86945592,230.12,230.07,30.5]
[1759839234108,15.86945592,230.12,230.07,31.21]
[1759839234937,15.86945592,230.12,230.08,30.48]
[1759839236448,15.20945592,230.12,230.08,30.48]
[1759839236614,0.66,230.11,230.08,30.48]
[1759839236817,15.20945592,230.12,230.08,30.48]
[1759839237013,15.86945592,230.12,230.08,30.48]
[1759839238347,15.86945592,230.12,230.08,31.19]
[1759839240045,10.86389709,230.12,230.08,31.19]
[1759839240348,11.52389709,230.12,230.08,31.19]
[1759839240858,0.66,230.11,230.06,0.1]
[1759839241019,3.57815494,230.11,230.06,0.1]
[1759839241217,3.57815494,230.11,230.07,30.46]
[1759839241420,20.8,230.09,230.07,30.46]
[1759839241733,21.49,230.09,230.07,30.46]
[1759839241925,4.34631432,230.08,230.07,30.46]
[1759839242132,25.14631432,230.08,230.07,30.46]
[1759839243430,25.14631432,230.08,230.07,31.12]
[1759839244618,25.14631432,230.08,230.07,30.46]
[1759839247319,25.83631432,230.08,230.06,0.1]
[1759839247524,25.83631432,230.08,230.07,30.44]
[1759839247745,25.83631432,230.08,230.06,0.1]
[1759839247944,25.83631432,230.08,230.07,30.44]
[1759839248727,25.14631432,230.08,230.07,30.44]
[1759839251756,25.14631432,230.08,230.06,0.1]
[1759839252049,25.14631432,230.08,230.07,30.42]
[1759839252434,25.83631432,230.08,230.06,0.1]
[1759839252631,25.14631432,230.08,230.07,30.42]
[1759839253147,20.8,230.07,230.06,0.1]
[1759839253354,20.8,230.07,230.06,30.52]
[1759839254260,25.14650323,230.07,230.06,30.52]
[1759839262069,25.14650323,230.07,230.06,31.18]
[1759839264766,25.83650323,230.07,230.06,30.48]
[1759839266455,25.14650323,230.07,230.06,30.48]
[1759839267370,28.75262183,230.07,230.06,30.48]
[1759839268650,28.06262183,230.07,230.06,30.48]
[1759839272679,25.14650323,230.07,230.06,30.48]
[1759839274078,25.14650323,230.07,230.06,31.16]
[1759839276264,25.14650323,230.07,230.06,30.48]
[1759839276467,20.8,230.07,230.06,31.16]
[1759839277078,25.14650323,230.07,230.06,31.16]
[1759839279468,25.14650323,230.07,230.06,30.48]
[1759839280375,25.80650323,230.07,230.06,30.46]
[1759839280582,25.80650323,230.07,230.06,0.1]
[1759839280879,25.80650323,230.07,230.06,30.46]
[1759839281474,25.80650323,230.07,230.06,0.1]
[1759839281675,25.80650323,230.07,230.06,30.46]
[1759839282274,28.72673441,230.07,230.06,30.46]
[1759839284982,28.06673441,230.07,230.06,30.46]
[1759839287389,28.73673441,230.07,230.06,30.46]
[1759839288276,28.73673441,230.07,230.06,0.1]
[1759839288468,54.93673441,230.07,230.06,25.2]
[1759839289415,57.65526692,230.07,230.06,30.46]
[1759839290610,57.65526692,230.07,230.06,0.1]
[1759839293504,57.65526692,230.07,230.04,1e-08]
[1759839293802,2.71853251,230.05,230.04,1e-08]
[1759839293999,5.63876369,230.05,230.03,20.8]
[1759839294295,3.59023118,230.04,230.03,20.8]
[1759839294471,2.92023118,230.04,230.03,20.8]
[1759839295094,28.06730125,230.04,230.03,20.8]
[1759839296516,28.06730125,230.04,230.03,21.47]
[1759839298694,4.34688306,230.05,230.03,21.47]
[1759839298898,4.34688306,230.05,230.04,0.67]
[1759839299385,20.8,230.07,230.04,0.67]
[1759839299988,20.8,230.07,230.03,13.04773295]